lending/lending_fUSD_20250621
["ID","MTS","AMOUNT","RATE_DAILY","PERIOD"]
[366845175,1750506634876,-166.77,0.00023433,2]
[366845176,1750506634886,-247.85,0.00023516,2]
[366845177,1750506634895,-249.83,0.00023516,2]
[366845178,1750506634905,-151.0,0.00023516,7]
[366845179,1750506634914,-151.0,0.00023516,7]
[366845180,1750506634924,-151.0,0.00023516,7]
[366845181,1750506634933,-151.0,0.00023516,7]
[366845182,1750506634943,-180.0,0.00023615,2]
[366845183,1750506634953,-201.0,0.00023643,6]
[366845184,1750506634962,-328.1,0.00023836,2]
[366845185,1750506634971,-151.0,0.00023974,7]
[366845186,1750506634981,-151.0,0.00023974,7]
[366845187,1750506634990,-640.979,0.00023974,5]
[366845188,1750506635000,-1870.41351402,0.00024,3]
[366845189,1750506635009,-525.56729021,0.00024003,10]
[366845190,1750506635019,-1595.02,0.00024074,2]
[366845191,1750506635029,-978.61,0.00024074,2]
[366845192,1750506635039,-1028.51511155,0.00024164,2]
[366845193,1750506635048,-1112.38680274,0.00024164,2]
[366845194,1750506635058,-1014.15676447,0.00024164,2]
[366845195,1750506635067,-1147.65546452,0.00024164,2]
[366845196,1750506635077,-1095.35411823,0.00024164,2]
[366845197,1750506635087,-1101.00845408,0.00024164,2]
[366845198,1750506635097,-1111.70610969,0.00024164,2]
[366845199,1750506635107,-1096.55384275,0.00024164,2]
[366845200,1750506635117,-1014.28730304,0.00024164,2]
[366845201,1750506635126,-1048.36270684,0.00024164,2]
[366845202,1750506635136,-1096.69122993,0.00024164,2]
[366845203,1750506635145,-1075.91715714,0.00024164,2]
[366845204,1750506635155,-1059.21394111,0.00024164,2]
[366845205,1750506635165,-1104.05172515,0.00024164,2]
[366845206,1750506635175,-1027.33419893,0.00024164,2]
[366845207,1750506635185,-1017.52559357,0.00024164,2]
[366845208,1750506635195,-1063.75456144,0.00024164,2]
[366845209,1750506635206,-180.0,0.00024202,2]
[366845210,1750506635216,-156.587,0.0002422,2]
[366845211,1750506635225,-215.0738,0.0002422,2]
[366845212,1750506635235,-151.0,0.000244,7]
[366845213,1750506635244,-9947.94,0.000244,2]
[366845214,1750506635254,-500.0,0.000244,8]
[366845215,1750506635263,-172.67999371,0.00024458,2]
[366845216,1750506635272,-2000.0,0.0002448,2]
[366845217,1750506635281,-200.0,0.0002448,2]
[366845218,1750506635291,-1100.0,0.000245,8]
[366845219,1750506635300,-88328.0,0.000245,2]
[366845220,1750506635310,-2500.0,0.00024558,2]
[366845221,1750506635319,-1000.0,0.00024568,2]
[366845222,1750506635328,-394.66037526,0.00024569,2]
[366845223,1750506635338,-29206.35208061,0.00024569,2]
[366845224,1750506635372,-252.57382848,0.00024569,2]
[366845225,1750506635434,-686.35471434,0.00024569,2]
[366845226,1750506635446,-309.29844596,0.00024569,2]
[366845285,1750506639495,-885.0,0.00022238,2]
[366845286,1750506639505,-1389.37864763,0.0002335,2]
[366845287,1750506639515,-171.82135237,0.00024078,2]
[366845288,1750506639526,-1326.10958681,0.00024078,2]
[366845289,1750506639535,-2114.10973061,0.00024569,2]
[366845290,1750506639544,-1000.0,0.00024569,2]
[366845291,1750506639554,-500.0,0.00024569,2]
[366845292,1750506639563,-5000.0,0.00024587,2]
[366845293,1750506639573,-188.67878216,0.00024587,2]
[366845294,1750506639583,-181.91852176,0.00024587,2]
[366845295,1750506639592,-438.43483354,0.00024587,2]
[366845296,1750506639601,-2338.09480494,0.00024587,2]
[366845297,1750506639610,-795.83250478,0.00024587,2]
[366845298,1750506639619,-161.24399986,0.00024587,2]
[366845299,1750506639628,-2726.4531,0.00024589,3]
[366845300,1750506639638,-525.56729021,0.0002459,11]
[366845301,1750506639647,-1700.0,0.000246,8]
[366845302,1750506639657,-151.0,0.00024622,2]
[366845303,1750506639666,-662.57738953,0.00024631,2]
[366845304,1750506639678,-267.19261047,0.00024631,2]
[366845305,1750506639688,-166.77,0.00024655,2]
[366845306,1750506639697,-151.960613,0.00024657,7]
[366845307,1750506639706,-151.0,0.00024657,7]
[366845308,1750506639716,-198.49,0.00024667,2]
[366845309,1750506639725,-380.2813346,0.00024669,2]
[366845310,1750506639734,-1402.09844613,0.00024669,2]
[366845311,1750506639745,-1092.6,0.00024669,2]
[366845312,1750506639756,-766.09352048,0.00024669,2]
[366845313,1750506639780,-1367.81220639,0.00024669,2]
[366845314,1750506639790,-1457.87874521,0.00024669,2]
[366845315,1750506639801,-889.05553759,0.00024669,2]
[366845316,1750506639813,-779.79811136,0.00024669,2]
[366845317,1750506639838,-6294.81461154,0.00024669,2]
[366845318,1750506639847,-1219.8686298,0.00024669,2]
[366845319,1750506639856,-16251.8913369,0.00024669,2]
[366845320,1750506639866,-75678.0545335,0.00024669,2]
[366845321,1750506639875,-109469.7714762,0.00024669,2]
[366845322,1750506639885,-151.0,0.00024669,7]
[366845323,1750506639894,-151.0,0.00024669,7]
[366845324,1750506639903,-151.0,0.00024669,7]
[366845325,1750506639912,-151.0,0.00024669,7]
[366845326,1750506639922,-151.0,0.00024669,7]
[366845328,1750506639932,-151.0,0.00024669,7]
[366845329,1750506639943,-151.0,0.00024669,7]
[366845330,1750506639952,-151.0,0.00024669,7]
[366845331,1750506639961,-151.0,0.00024669,7]
[366845332,1750506639971,-151.0,0.00024669,7]
[366845333,1750506639980,-151.0,0.00024669,7]
[366845334,1750506639990,-650.085591,0.00024669,7]
[366845335,1750506639999,-151.0,0.00024669,7]
[366845336,1750506640008,-151.0,0.00024669,7]
[366845337,1750506640018,-650.085591,0.00024669,7]
[366845338,1750506640027,-600.91536243,0.0002467,2]
[366845339,1750506640037,-1000.0,0.0002467,2]
[366845340,1750506640046,-500.0,0.0002467,2]
[366845341,1750506640056,-1000.0,0.0002467,2]
[366845342,1750506640065,-501.8520891,0.00024673,2]
[366845343,1750506640076,-182.85802,0.00024673,2]
[366845344,1750506640088,-34373.95721264,0.00024675,2]
[366845346,1750506640098,-1028.34530853,0.00024676,5]
[366845347,1750506640108,-200.0,0.00024676,2]
[366845348,1750506640119,-200.0,0.00024676,2]
[366845349,1750506640128,-300.0,0.00024676,2]
[366845350,1750506640138,-208.47587924,0.00024677,2]
[366845351,1750506640148,-151.48,0.00024677,2]
[366845352,1750506640163,-99833.08588075,0.00024677,4]
[366845353,1750506640173,-151.0,0.00024677,7]
[366845354,1750506640183,-152.719564,0.00024677,7]
[366845355,1750506640193,-151.0,0.00024677,7]
[366845356,1750506640203,-375.348405,0.00024677,7]
[366845357,1750506640212,-375.348405,0.00024677,7]
[366845358,1750506640221,-151.0,0.00024677,7]
[366845359,1750506640231,-265.487668,0.00024677,7]
[366845360,1750506640240,-151.0,0.00024677,7]
[366845361,1750506640249,-151.0,0.00024677,7]
[366845362,1750506640259,-151.0,0.00024677,7]
[366845363,1750506640268,-156.095172,0.00024677,7]
[366845364,1750506640278,-151.0,0.00024677,7]
[366845365,1750506640287,-151.0,0.00024677,7]
[366845366,1750506640297,-153.828957,0.00024677,7]
[366845367,1750506640306,-151.0,0.00024677,7]
[366845368,1750506640316,-151.0,0.00024677,7]
[366845369,1750506640326,-151.0,0.00024677,7]
[366845370,1750506640335,-151.0,0.00024677,2]
[366845371,1750506640345,-151.0,0.00024677,2]
[366845372,1750506640354,-151.0,0.00024677,7]
[366845373,1750506640364,-169.529375,0.00024677,7]
[366845374,1750506640373,-151.0,0.00024677,7]
[366845375,1750506640382,-151.0,0.00024677,7]
[366845376,1750506640392,-151.0,0.00024677,7]
[366845377,1750506640402,-151.0,0.00024677,7]
[366845378,1750506640411,-151.0,0.00024677,7]
[366845379,1750506640421,-258.035384,0.00024677,7]
[366845380,1750506640431,-151.0,0.00024677,7]
[366845381,1750506640440,-151.0,0.00024677,7]
[366845382,1750506640450,-151.0,0.00024677,7]
[366845383,1750506640459,-151.0,0.00024677,7]
[366845384,1750506640468,-151.0,0.00024677,7]
[366845385,1750506640478,-214.197832,0.00024677,7]
[366845386,1750506640488,-214.197832,0.00024677,7]
[366845387,1750506640497,-151.0,0.00024677,7]
[366845388,1750506640507,-151.0,0.00024677,7]
[366845389,1750506640516,-151.251723,0.00024677,7]
[366845390,1750506640526,-151.0,0.00024677,7]
[366845391,1750506640535,-151.0,0.00024677,7]
[366845392,1750506640545,-151.0,0.00024677,7]
[366845393,1750506640555,-151.0,0.00024677,7]
[366845394,1750506640564,-151.0,0.00024677,7]
[366845395,1750506640573,-157.861356,0.00024677,7]
[366845396,1750506640583,-151.0,0.00024677,7]
[366845397,1750506640592,-151.0,0.00024677,7]
[366845398,1750506640602,-1489.226494,0.00024677,7]
[366845399,1750506640611,-1489.226494,0.00024677,7]
[366845400,1750506640621,-151.0,0.00024677,7]
[366845401,1750506640630,-151.0,0.00024677,7]
[366845402,1750506640640,-914.748671,0.00024677,7]
[366845403,1750506640649,-914.748671,0.00024677,7]
[366845404,1750506640658,-151.0,0.00024677,7]
[366845405,1750506640667,-867.160274,0.00024677,7]
[366845406,1750506640677,-867.160274,0.00024677,7]
[366845407,1750506640686,-151.0,0.00024677,7]
[366845408,1750506640696,-151.0,0.00024677,7]
[366845409,1750506640705,-151.0,0.00024677,7]
[366845410,1750506640715,-232.346022,0.00024677,7]
[366845411,1750506640724,-232.346022,0.00024677,7]
[366845412,1750506640734,-151.0,0.00024677,7]
[366845413,1750506640743,-151.0,0.00024677,7]
[366845414,1750506640753,-151.0,0.00024677,7]
[366845415,1750506640762,-151.0,0.00024677,7]
[366845416,1750506640772,-151.733356,0.00024677,7]
[366845417,1750506640781,-151.0,0.00024677,7]
[366845418,1750506640791,-151.0,0.00024677,7]
[366845419,1750506640800,-151.0,0.00024677,7]
[366845420,1750506640809,-151.0,0.00024677,7]
[366845421,1750506640819,-650.085591,0.00024677,7]
[366845422,1750506640828,-187.996856,0.00024677,7]
[366845423,1750506640838,-151.0,0.00024677,7]
[366845424,1750506640847,-650.085591,0.00024677,7]
[366845425,1750506640857,-300.0,0.00024686,10]
[366845426,1750506640866,-300.0,0.00024686,10]
[366845427,1750506640876,-300.0,0.00024686,10]
[366845428,1750506640886,-666.0,0.00024686,2]
[366845429,1750506640895,-300.0,0.00024686,10]
[366845430,1750506640905,-300.0,0.00024686,10]
[366845431,1750506640915,-300.0,0.00024686,10]
[366845432,1750506640925,-300.0,0.00024686,10]
[366845433,1750506640934,-20440.50808672,0.00024687,5]
[366845434,1750506640943,-3328705.72942977,0.00024687,5]
[366845435,1750506640957,-3912.2173612,0.00024687,5]
[366845436,1750506640995,-5589.97771579,0.00024687,5]
[366845437,1750506641006,-321.61458949,0.00024687,5]
[366845438,1750506641048,-904.78563712,0.00024687,5]
[366845439,1750506641059,-1041.9798,0.00024687,5]
[366845440,1750506642161,-829.30951094,0.00022238,2]
[366845441,1750506642219,-6305.69048906,0.00022238,2]
[366845442,1750506642228,-1389.37864763,0.00023556,2]
[366845443,1750506642238,-77477.04236322,0.00024687,5]
[366845444,1750506642351,-27225.7294045,0.00024687,5]
[366845455,1750506644516,-151.0,0.00024677,2]
[366845456,1750506644526,-151.0,0.00024677,2]
[366845457,1750506644535,-151.0,0.00024677,2]
[366845458,1750506644545,-151.0,0.00024686,2]
[366845459,1750506644554,-9989.0,0.00024687,5]
[366845460,1750506644594,-551.58477751,0.00024687,5]
[366845461,1750506644605,-317.68656233,0.00024687,5]
[366845462,1750506644616,-11929.34750335,0.00024687,5]
[366845463,1750506644709,-2628.90849115,0.00024687,5]
[366845464,1750506644720,-2610.46582762,0.00024687,5]
[366845465,1750506644732,-11274.21261662,0.00024687,5]
[366845466,1750506644743,-3487.243837,0.00024687,5]
[366845484,1750506646892,-1389.37864763,0.00023762,2]
[366845485,1750506646902,-500.0,0.00024064,2]
[366845486,1750506646912,-223.4548336,0.000246,2]
[366845487,1750506646922,-151.0,0.00024669,7]
[366845488,1750506646931,-241.74963007,0.00024686,2]
[366845489,1750506646941,-555831.23148051,0.00024687,5]
[366845490,1750506646965,-427.77,0.00024687,5]
[366845491,1750506647027,-16522.53960692,0.00024687,5]
[366845492,1750506647071,-34337.08839748,0.00024687,5]
[366845540,1750507307932,2594.04077913,0.00022,30]
[366845541,1750507550043,203.94,0.00013699,2]
[366845555,1750507832315,-203.94,0.00020187,2]
[366845556,1750507832324,-500.0,0.0002088,2]
[366845557,1750507832334,-52.10940638,0.00021333,2]
[366845558,1750507832372,-447.89059362,0.00021333,2]
[366845559,1750507832382,-63.54834038,0.00021573,2]
[366845560,1750507832394,-136.45165962,0.00021573,2]
[366845561,1750507832403,-4612.24,0.00021598,2]
[366845562,1750507832413,-250.0,0.00021622,2]
[366845563,1750507832423,-1200.0,0.00021683,2]
[366845564,1750507832432,-2751.0,0.00021684,2]
[366845565,1750507832442,-1000.0,0.00021708,2]
[366845566,1750507832451,-200.0,0.00021736,2]
[366845567,1750507832461,-150.0,0.00021748,2]
[366845568,1750507832470,-165.81,0.00021763,2]
[366845569,1750507832479,-220.00563607,0.000219,2]
[366845570,1750507832489,-300.0,0.00021949,2]
[366845571,1750507832498,-249.33,0.00021951,2]
[366845572,1750507832508,-305.34,0.00021951,2]
[366845573,1750507832518,-247.71,0.00021951,2]
[366845574,1750507832528,-245.66,0.00021951,2]
[366845575,1750507832538,-249.63,0.00021951,2]
[366845576,1750507832547,-253.62,0.00021951,2]
[366845577,1750507832557,-254.92,0.00021951,2]
[366845578,1750507832566,-247.18,0.00021951,2]
[366845579,1750507832576,-301.17,0.00021951,2]
[366845580,1750507832586,-253.88,0.00021951,2]
[366845581,1750507832595,-245.51,0.00021951,2]
[366845582,1750507832605,-301.64,0.00021951,2]
[366845583,1750507832614,-249.37,0.00021951,2]
[366845584,1750507832624,-302.31,0.00021951,2]
[366845585,1750507832639,-247.7,0.00021951,2]
[366845586,1750507832649,-245.7,0.00021951,2]
[366845587,1750507832659,-252.26,0.00021951,2]
[366845588,1750507832668,-303.81,0.00021951,2]
[366845589,1750507832679,-251.24,0.00021951,2]
[366845590,1750507832688,-250.42,0.00021951,2]
[366845591,1750507832697,-301.78,0.00021951,2]
[366845592,1750507832707,-249.7,0.00021951,2]
[366845593,1750507832717,-305.3,0.00021951,2]
[366845594,1750507832727,-247.78,0.00021951,2]
[366845595,1750507832736,-250.98,0.00021951,2]
[366845596,1750507832746,-305.28,0.00021951,2]
[366845597,1750507832755,-250.63,0.00021951,2]
[366845598,1750507832764,-252.1,0.00021951,2]
[366845599,1750507832774,-304.94,0.00021951,2]
[366845600,1750507832784,-250.45,0.00021951,2]
[366845601,1750507832793,-302.53,0.00021951,2]
[366845602,1750507832804,-246.9,0.00021951,2]
[366845603,1750507832814,-254.82,0.00021951,2]
[366845604,1750507832823,-301.88,0.00021951,2]
[366845605,1750507832833,-246.04,0.00021951,2]
[366845606,1750507832842,-246.59,0.00021951,2]
[366845607,1750507832851,-303.18,0.00021951,2]
[366845609,1750507832861,-245.11,0.00021951,2]
[366845610,1750507832871,-302.19,0.00021951,2]
[366845611,1750507832880,-303.81,0.00021951,2]
[366845612,1750507832889,-252.23,0.00021951,2]
[366845613,1750507832899,-247.72,0.00021951,2]
[366845614,1750507832908,-305.78,0.00021951,2]
[366845615,1750507832918,-305.74,0.00021951,2]
[366845616,1750507832927,-254.01,0.00021952,2]
[366845617,1750507832936,-302.44,0.00021952,2]
[366845618,1750507832945,-252.46,0.00021952,2]
[366845619,1750507832955,-301.51,0.00021952,2]
[366845620,1750507832964,-254.07,0.00021952,2]
[366845621,1750507832973,-254.21,0.00021952,2]
[366845622,1750507832983,-304.38,0.00021952,2]
[366845623,1750507832993,-248.06,0.00021952,2]
[366845624,1750507833002,-251.67,0.00021952,2]
[366845625,1750507833011,-303.25,0.00021952,2]
[366845626,1750507833021,-245.44,0.00021952,2]
[366845627,1750507833031,-250.65,0.00021952,2]
[366845628,1750507833042,-304.14,0.00021952,2]
[366845629,1750507833052,-248.31,0.00021952,2]
[366845630,1750507833062,-250.47,0.00021952,2]
[366845631,1750507833071,-300.9,0.00021952,2]
[366845632,1750507833081,-245.99,0.00021952,2]
[366845633,1750507833091,-303.47,0.00021952,2]
[366845634,1750507833101,-252.8,0.00021952,2]
[366845635,1750507833110,-245.36,0.00021952,2]
[366845636,1750507833120,-303.91,0.00021952,2]
[366845637,1750507833129,-247.07,0.00021952,2]
[366845638,1750507833139,-245.06,0.00021952,2]
[366845639,1750507833151,-300.85,0.00021952,2]
[366845640,1750507833163,-252.74,0.00021952,2]
[366845641,1750507833174,-253.24,0.00021952,2]
[366845642,1750507833183,-304.87,0.00021952,2]
[366845643,1750507833192,-245.79,0.00021952,2]
[366845644,1750507833202,-246.83,0.00022052,2]
[366845645,1750507833212,-246.85,0.00022052,2]
[366845646,1750507833222,-304.05,0.00022052,2]
[366845647,1750507833232,-249.02,0.00022052,2]
[366845648,1750507833242,-301.21,0.00022052,2]
[366845649,1750507833251,-250.99,0.00022052,2]
[366845650,1750507833261,-254.44,0.00022052,2]
[366845651,1750507833271,-300.69,0.00022052,2]
[366845652,1750507833280,-253.98,0.00022052,2]
[366845653,1750507833290,-249.93,0.00022052,2]
[366845654,1750507833300,-304.96,0.00022052,2]
[366845655,1750507833310,-251.44,0.00022052,2]
[366845656,1750507833320,-253.88,0.00022052,2]
[366845657,1750507833331,-300.5,0.00022052,2]
[366845658,1750507833340,-248.33,0.00022052,2]
[366845659,1750507833350,-245.87,0.00022052,2]
[366845660,1750507833359,-305.21,0.00022052,2]
[366845661,1750507833369,-250.12,0.00022052,2]
[366845664,1750507833379,-253.42,0.00022052,2]
[366845665,1750507833388,-301.63,0.00022052,2]
[366845668,1750507833399,-247.86,0.00022052,2]
[366845669,1750507833408,-251.81,0.00022052,2]
[366845671,1750507833418,-305.84,0.00022052,2]
[366845673,1750507833427,-253.3,0.00022052,2]
[366845675,1750507833437,-254.0,0.00022052,2]
[366845677,1750507833447,-251.9,0.00022052,2]
[366845679,1750507833457,-305.22,0.00022052,2]
[366845681,1750507833468,-247.71,0.00022052,2]
[366845683,1750507833477,-302.99,0.00022052,2]
[366845685,1750507833487,-252.56,0.00022052,2]
[366845687,1750507833496,-253.09,0.00022052,2]
[366845689,1750507833505,-304.75,0.00022052,2]
[366845691,1750507833516,-253.04,0.00022052,2]
[366845693,1750507833526,-249.78,0.00022052,2]
[366845695,1750507833536,-302.82,0.00022053,2]
[366845697,1750507833545,-246.53,0.00022057,2]
[366845699,1750507833555,-245.27,0.00022057,2]
[366845701,1750507833565,-253.23,0.00022061,2]
[366845703,1750507833574,-250.23,0.00022061,2]
[366845705,1750507833584,-301.49,0.00022062,2]
[366845707,1750507833593,-304.36,0.00022062,2]
[366845708,1750507833603,-201.0,0.00022097,2]
[366845709,1750507833613,-202.0,0.00022097,2]
[366845710,1750507833622,-253.63,0.0002214,2]
[366845711,1750507833635,-254.22,0.0002214,2]
[366845712,1750507833644,-254.64,0.0002214,2]
[366845713,1750507833653,-305.17,0.00022141,2]
[366845714,1750507833662,-305.88,0.00022141,2]
[366845715,1750507833671,-248.21,0.00022146,2]
[366845716,1750507833681,-247.98,0.00022146,2]
[366845717,1750507833691,-245.18,0.00022147,2]
[366845718,1750507833701,-253.6,0.00022147,2]
[366845719,1750507833711,-300.87,0.00022153,2]
[366845720,1750507833721,-303.08,0.00022154,2]
[366845721,1750507833731,-2500.0,0.00022189,2]
[366845722,1750507833742,-834.26476573,0.00022196,2]
[366845723,1750507833751,-500.0,0.00022206,2]
[366845724,1750507833761,-250.0,0.00022206,2]
[366845725,1750507833772,-150.0,0.00022239,2]
[366845726,1750507833782,-150.0,0.00022239,2]
[366845727,1750507833792,-150.0,0.00022239,2]
[366845728,1750507833802,-150.0,0.00022239,2]
[366845729,1750507833811,-150.0,0.00022239,2]
[366845730,1750507833821,-150.0,0.00022239,2]
[366845731,1750507833831,-150.0,0.00022239,2]
[366845732,1750507833840,-150.0,0.00022239,2]
[366845733,1750507833851,-150.0,0.00022239,2]
[366845734,1750507833860,-3335.0,0.00022239,2]
[366845735,1750507833870,-946.0,0.00022239,2]
[366845736,1750507833880,-803.0,0.00022239,2]
[366845737,1750507833890,-591.0,0.00022239,2]
[366845738,1750507833900,-1278.0,0.00022239,2]
[366845739,1750507834115,-928.0,0.00022239,2]
[366845740,1750507834146,-2005.0,0.00022239,2]
[366845741,1750507834156,-559.0,0.00022239,2]
[366845742,1750507834166,-1676.0,0.00022239,2]
[366845743,1750507834175,-1161.0,0.00022239,2]
[366845744,1750507834185,-247.63,0.00022239,2]
[366845745,1750507834195,-246.31,0.00022239,2]
[366845746,1750507834204,-301.81,0.00022239,2]
[366845747,1750507834214,-248.59,0.00022239,2]
[366845748,1750507834224,-249.89,0.00022239,2]
[366845749,1750507834235,-302.32,0.00022239,2]
[366845750,1750507834245,-249.38,0.00022239,2]
[366845751,1750507834255,-305.49,0.00022239,2]
[366845752,1750507834265,-249.6,0.00022239,2]
[366845753,1750507834275,-327.64,0.0002232,2]
[366845754,1750507834285,-359.0,0.00022382,2]
[366845755,1750507834296,-359.0,0.00022386,2]
[366845756,1750507834307,-7135.0,0.00022409,2]
[366845757,1750507834317,-885.0,0.00022409,2]
[366845758,1750507834327,-4095.0,0.00022409,2]
[366845759,1750507834336,-166.66,0.00022411,2]
[366845760,1750507834346,-1165.34,0.00022509,2]
[366845761,1750507834356,-23900.0,0.00022586,2]
[366845762,1750507834365,-3031.0,0.00022685,2]
[366845763,1750507834375,-3031.0,0.00022686,2]
[366845764,1750507834385,-194.77,0.00022743,2]
[366845765,1750507834395,-666.0,0.00022746,2]
[366845766,1750507834405,-228.1906,0.000228,2]
[366845767,1750507834414,-2500.0,0.00022809,2]
[366845768,1750507834424,-402.80061793,0.000229,8]
[366845769,1750507834433,-253.55292526,0.00022911,2]
[366845770,1750507834443,-200.0,0.00023,2]
[366845771,1750507834453,-207.4,0.00023077,2]
[366845772,1750507834462,-151.0,0.00023077,2]
[366845773,1750507834471,-798.09,0.00023137,2]
[366845774,1750507834481,-402.80061782,0.00023383,9]
[366845775,1750507834490,-201.0,0.00023613,4]
[366845776,1750507834500,-1200.0,0.00023681,2]
[366845777,1750507834510,-500.0,0.000237,7]
[366845778,1750507834521,-500.0,0.000237,7]
[366845779,1750507834530,-500.0,0.000237,7]
[366845780,1750507834540,-500.0,0.000237,7]
[366845781,1750507834549,-435.33,0.000237,7]
[366845782,1750507834559,-251.12,0.00023744,2]
[366845783,1750507834568,-305.52,0.00023744,2]
[366845784,1750507834577,-249.51,0.00023744,2]
[366845785,1750507834587,-304.11,0.00023744,2]
[366845786,1750507834596,-273.41,0.00023836,2]
[366845787,1750507834605,-402.80061782,0.00023866,10]
[366845788,1750507834615,-555.75145907,0.00023867,2]
[366845789,1750507834625,-314.40399048,0.00023867,2]
[366845790,1750507834639,-314.40399035,0.00023906,2]
[366845791,1750507834648,-314.40399035,0.00023944,2]
[366845792,1750507834657,-543.0,0.00023967,2]
[366845793,1750507834667,-500.0,0.00023967,2]
[366845794,1750507834680,-500.0,0.00023967,2]
[366845795,1750507834690,-500.0,0.00023967,2]
[366845796,1750507834700,-785.0,0.00023967,2]
[366845797,1750507834709,-500.0,0.00023967,2]
[366845798,1750507834719,-500.0,0.00023967,2]
[366845799,1750507834729,-500.0,0.00023967,2]
[366845800,1750507834739,-500.0,0.00023967,2]
[366845801,1750507834748,-500.0,0.00023967,2]
[366845802,1750507834758,-500.0,0.00023967,2]
[366845803,1750507834769,-500.0,0.00023967,2]
[366845804,1750507834778,-500.0,0.00023967,2]
[366845805,1750507834787,-500.0,0.00023967,2]
[366845806,1750507834797,-500.0,0.00023967,2]
[366845807,1750507834807,-500.0,0.00023967,2]
[366845808,1750507834816,-500.0,0.00023967,2]
[366845809,1750507834826,-500.0,0.00023967,2]
[366845810,1750507834834,-500.0,0.00023967,2]
[366845811,1750507834843,-500.0,0.00023967,2]
[366845812,1750507834852,-500.0,0.00023967,2]
[366845813,1750507834861,-500.0,0.00023967,2]
[366845814,1750507834870,-500.0,0.00023967,2]
[366845815,1750507834880,-500.0,0.00023967,2]
[366845816,1750507834889,-500.0,0.00023967,2]
[366845817,1750507834899,-500.0,0.00023967,2]
[366845818,1750507834908,-500.0,0.00023967,2]
[366845819,1750507834918,-500.0,0.00023967,2]
[366845820,1750507834927,-500.0,0.00023967,2]
[366845821,1750507834936,-500.0,0.00023967,2]
[366845822,1750507834946,-500.0,0.00023967,2]
[366845823,1750507834956,-500.0,0.00023967,2]
[366845824,1750507834966,-500.0,0.00023967,2]
[366845825,1750507834975,-500.0,0.00023967,2]
[366845826,1750507834985,-500.0,0.00023967,2]
[366845827,1750507834994,-500.0,0.00023967,2]
[366845828,1750507835004,-500.0,0.00023967,2]
[366845829,1750507835014,-500.0,0.00023967,2]
[366845830,1750507835024,-500.0,0.00023967,2]
[366845831,1750507835034,-500.0,0.00023967,2]
[366845832,1750507835043,-500.0,0.00023967,2]
[366845833,1750507835053,-500.0,0.00023967,2]
[366845834,1750507835062,-500.0,0.00023967,2]
[366845835,1750507835072,-500.0,0.00023967,2]
[366845836,1750507835082,-500.0,0.00023967,2]
[366845837,1750507835091,-500.0,0.00023967,2]
[366845838,1750507835101,-500.0,0.00023967,2]
[366845839,1750507835110,-500.0,0.00023967,2]
[366845840,1750507835120,-500.0,0.00023967,2]
[366845841,1750507835129,-500.0,0.00023967,2]
[366845842,1750507835139,-500.0,0.00023967,2]
[366845843,1750507835148,-500.0,0.00023967,2]
[366845844,1750507835158,-500.0,0.00023967,2]
[366845845,1750507835169,-500.0,0.00023967,2]